lending/lending_fUSD_20240411
["ID","MTS","AMOUNT","RATE_DAILY","PERIOD"]
[322160932,1712859059161,-518.05,0.0003041,2]
[322160933,1712859059171,-500.0,0.0003041,2]
[322160934,1712859059180,-1827.34,0.0003041,2]
[322160935,1712859059190,-500.0,0.0003041,2]
[322160936,1712859059200,-907.37,0.0003041,2]
[322160937,1712859059210,-551.99,0.0003041,2]
[322160938,1712859059220,-607.86,0.0003041,2]
[322160939,1712859059231,-500.0,0.0003041,2]
[322160940,1712859059241,-2443.71,0.0003041,2]
[322160941,1712859059250,-500.0,0.0003041,2]
[322160942,1712859059259,-500.0,0.0003041,2]
[322160943,1712859059269,-896.75,0.0003041,2]
[322160944,1712859059278,-500.0,0.0003041,2]
[322160945,1712859059287,-1313.17,0.0003041,2]
[322160946,1712859059297,-500.0,0.0003041,2]
[322160947,1712859059308,-1482.19,0.0003041,2]
[322160948,1712859059317,-1039.9,0.0003041,2]
[322160949,1712859059326,-500.0,0.0003041,2]
[322160950,1712859059336,-2119.38,0.0003041,2]
[322160951,1712859059345,-438.85611053,0.0003041,2]
[322160952,1712859059355,-500.0,0.0003041,2]
[322160953,1712859059364,-500.0,0.0003041,2]
[322160954,1712859059374,-1677.15,0.0003041,2]
[322160955,1712859059383,-500.0,0.0003041,2]
[322160956,1712859059392,-500.0,0.0003041,2]
[322160957,1712859059402,-500.0,0.0003041,2]
[322160958,1712859059411,-500.0,0.0003041,2]
[322160959,1712859059421,-770.36,0.0003041,2]
[322160960,1712859059430,-500.0,0.0003041,2]
[322160961,1712859059439,-500.0,0.0003041,2]
[322160962,1712859059449,-500.0,0.0003041,2]
[322160963,1712859059458,-735.88,0.0003041,2]
[322160964,1712859059468,-1331.76,0.0003041,2]
[322160965,1712859059478,-500.0,0.0003041,2]
[322160966,1712859059487,-500.0,0.0003041,2]
[322160967,1712859059497,-1216.17,0.0003041,2]
[322160968,1712859059507,-951.07,0.0003041,2]
[322160969,1712859059517,-500.0,0.0003041,2]
[322160970,1712859059526,-500.0,0.0003041,2]
[322160971,1712859059535,-627.43,0.0003041,2]
[322160972,1712859059545,-702.69,0.0003041,2]
[322160973,1712859059555,-500.0,0.0003041,2]
[322160974,1712859059565,-500.0,0.0003041,2]
[322160975,1712859059575,-500.0,0.0003041,2]
[322160976,1712859059585,-500.0,0.0003041,2]
[322160977,1712859059594,-1412.18,0.0003041,2]
[322160978,1712859059604,-530.68,0.0003041,2]
[322160979,1712859059616,-500.0,0.0003041,2]
[322160980,1712859059626,-500.0,0.0003041,2]
[322160981,1712859059636,-500.0,0.0003041,2]
[322160982,1712859059645,-500.0,0.0003041,2]
[322160983,1712859059655,-500.0,0.0003041,2]
[322160984,1712859059665,-732.88,0.0003041,2]
[322160985,1712859059675,-500.0,0.0003041,2]
[322160986,1712859059685,-500.0,0.0003041,2]
[322160987,1712859059695,-500.0,0.0003041,2]
[322160988,1712859059704,-500.0,0.0003041,2]
[322160989,1712859059714,-566.57483973,0.0003041,2]
[322160990,1712859059724,-500.0,0.0003041,2]
[322160991,1712859059733,-1274.05,0.0003041,2]
[322160992,1712859059743,-2012.46,0.0003041,2]
[322160993,1712859059753,-500.0,0.0003041,2]
[322160994,1712859059762,-984.39,0.0003041,2]
[322160995,1712859059772,-520.64,0.0003041,2]
[322160996,1712859059782,-500.0,0.0003041,2]
[322160997,1712859059791,-862.7,0.0003041,2]
[322160998,1712859059801,-1127.21,0.0003041,2]
[322160999,1712859059811,-500.0,0.0003041,2]
[322161000,1712859059821,-1330.54,0.0003041,2]
[322161001,1712859059831,-500.0,0.0003041,2]
[322161002,1712859059840,-913.4,0.0003041,2]
[322161003,1712859059850,-500.0,0.0003041,2]
[322161004,1712859059859,-960.05,0.0003041,2]
[322161005,1712859059869,-500.0,0.0003041,2]
[322161006,1712859059882,-1052.25,0.0003041,2]
[322161007,1712859059891,-500.0,0.0003041,2]
[322161008,1712859059901,-779.52,0.0003041,2]
[322161009,1712859059910,-500.0,0.0003041,2]
[322161010,1712859059919,-500.0,0.0003041,2]
[322161011,1712859059929,-500.0,0.0003041,2]
[322161012,1712859059939,-713.28,0.0003041,2]
[322161013,1712859059949,-500.0,0.0003041,2]
[322161014,1712859059958,-500.0,0.0003041,2]
[322161015,1712859059968,-500.0,0.0003041,2]
[322161016,1712859059977,-505.12540249,0.0003041,2]
[322161017,1712859059986,-500.0,0.0003041,2]
[322161018,1712859059996,-500.0,0.0003041,2]
[322161019,1712859060005,-500.0,0.0003041,2]
[322161020,1712859060015,-500.0,0.0003041,2]
[322161021,1712859060024,-1150.41,0.0003041,2]
[322161022,1712859060034,-971.83,0.0003041,2]
[322161023,1712859060044,-1688.56,0.0003041,2]
[322161024,1712859060053,-500.0,0.0003041,2]
[322161025,1712859060064,-500.0,0.0003041,2]
[322161026,1712859060074,-1236.45,0.0003041,2]
[322161027,1712859060083,-500.0,0.0003041,2]
[322161028,1712859060092,-500.0,0.0003041,2]
[322161029,1712859060102,-985.38,0.0003041,2]
[322161030,1712859060112,-976.4,0.0003041,2]
[322161031,1712859060124,-500.0,0.0003041,2]
[322161032,1712859060133,-500.0,0.0003041,2]
[322161033,1712859060142,-500.0,0.0003041,2]
[322161034,1712859060151,-1518.9,0.0003041,2]
[322161035,1712859060162,-500.0,0.0003041,2]
[322161036,1712859060171,-500.0,0.0003041,2]
[322161037,1712859060181,-500.0,0.0003041,2]
[322161038,1712859060191,-500.0,0.0003041,2]
[322161039,1712859060200,-576.86,0.0003041,2]
[322161040,1712859060212,-500.0,0.0003041,2]
[322161041,1712859060221,-500.0,0.0003041,2]
[322161042,1712859060231,-500.0,0.0003041,2]
[322161043,1712859060240,-500.0,0.0003041,2]
[322161044,1712859060250,-500.0,0.0003041,2]
[322161045,1712859060259,-500.0,0.0003041,2]
[322161046,1712859060269,-500.0,0.0003041,2]
[322161047,1712859060278,-500.0,0.0003041,2]
[322161048,1712859060287,-560.31630542,0.0003041,2]
[322161049,1712859060297,-500.0,0.0003041,2]
[322161050,1712859060308,-1443.78,0.0003041,2]
[322161051,1712859060317,-1339.51,0.0003041,2]
[322161052,1712859060326,-1749.33,0.0003041,2]
[322161053,1712859060336,-500.0,0.0003041,2]
[322161054,1712859060345,-560.59,0.0003041,2]
[322161055,1712859060354,-500.0,0.0003041,2]
[322161056,1712859060364,-500.0,0.0003041,2]
[322161057,1712859060373,-1024.81,0.0003041,2]
[322161058,1712859060383,-500.0,0.0003041,2]
[322161059,1712859060392,-720.79,0.0003041,2]
[322161060,1712859060401,-500.0,0.0003041,2]
[322161061,1712859060411,-500.0,0.0003041,2]
[322161062,1712859060420,-500.0,0.0003041,2]
[322161063,1712859060429,-1136.47,0.0003041,2]
[322161064,1712859060438,-500.0,0.0003041,2]
[322161065,1712859060447,-500.0,0.0003041,2]
[322161066,1712859060457,-1207.21,0.0003041,2]
[322161067,1712859060467,-808.32,0.0003041,2]
[322161068,1712859060476,-500.0,0.0003041,2]
[322161069,1712859060486,-500.0,0.0003041,2]
[322161070,1712859060496,-626.36,0.0003041,2]
[322161071,1712859060505,-1659.01,0.0003041,2]
[322161072,1712859060515,-540.22,0.0003041,2]
[322161073,1712859060524,-500.0,0.0003041,2]
[322161074,1712859060533,-672.87,0.0003041,2]
[322161075,1712859060543,-500.0,0.0003041,2]
[322161076,1712859060552,-500.0,0.0003041,2]
[322161077,1712859060563,-500.0,0.0003041,2]
[322161078,1712859060572,-1121.64,0.0003041,2]
[322161079,1712859060581,-500.0,0.0003041,2]
[322161080,1712859060591,-500.0,0.0003041,2]
[322161081,1712859060600,-500.0,0.0003041,2]
[322161082,1712859060610,-1620.71,0.0003041,2]
[322161083,1712859060619,-533.01,0.0003041,2]
[322161084,1712859060629,-813.23,0.0003041,2]
[322161085,1712859060638,-2531.46,0.0003041,2]
[322161086,1712859060648,-903.17,0.0003041,2]
[322161087,1712859060658,-837.83,0.0003041,2]
[322161088,1712859060668,-500.0,0.0003041,2]
[322161089,1712859060678,-930.72,0.0003041,2]
[322161090,1712859060687,-1589.68,0.0003041,2]
[322161091,1712859060699,-1278.01,0.0003041,2]
[322161092,1712859060708,-1072.57,0.0003041,2]
[322161093,1712859060719,-500.0,0.0003041,2]
[322161094,1712859060730,-564.88199899,0.0003041,2]
[322161095,1712859060740,-500.0,0.0003041,2]
[322161096,1712859060750,-500.0,0.0003041,2]
[322161097,1712859060759,-668.8,0.0003041,2]
[322161098,1712859060769,-1624.77,0.0003041,2]
[322161099,1712859060779,-500.0,0.0003041,2]
[322161100,1712859060789,-500.0,0.0003041,2]
[322161101,1712859060801,-844.8,0.0003041,2]
[322161102,1712859060812,-500.0,0.0003041,2]
[322161103,1712859060821,-639.12,0.0003041,2]
[322161104,1712859060830,-1321.77,0.0003041,2]
[322161105,1712859060841,-500.0,0.0003041,2]
[322161106,1712859060850,-1961.47,0.0003041,2]
[322161107,1712859060861,-500.0,0.0003041,2]
[322161108,1712859060871,-500.0,0.0003041,2]
[322161109,1712859060880,-748.27,0.0003041,2]
[322161110,1712859060890,-500.0,0.0003041,2]
[322161111,1712859060899,-526.67,0.0003041,2]
[322161112,1712859060909,-1340.44,0.0003041,2]
[322161113,1712859060919,-500.0,0.0003041,2]
[322161114,1712859060928,-716.42,0.0003041,2]
[322161115,1712859060941,-1090.05,0.0003041,2]
[322161116,1712859060951,-1393.71,0.0003041,2]
[322161117,1712859060961,-500.0,0.0003041,2]
[322161118,1712859060971,-204.744698,0.0003041,2]
[322161119,1712859060981,-533.63,0.0003041,2]
[322161120,1712859060992,-500.0,0.0003041,2]
[322161121,1712859061002,-500.0,0.0003041,2]
[322161122,1712859061012,-500.0,0.0003041,2]
[322161123,1712859061021,-533.47,0.0003041,2]
[322161124,1712859061031,-500.0,0.0003041,2]
[322161125,1712859061041,-500.0,0.0003041,2]
[322161126,1712859061051,-729.46,0.0003041,2]
[322161127,1712859061063,-500.0,0.0003041,2]
[322161128,1712859061072,-1456.05,0.0003041,2]
[322161129,1712859061081,-842.34,0.0003041,2]
[322161130,1712859061091,-500.0,0.0003041,2]
[322161131,1712859061101,-1711.02,0.0003041,2]
[322161132,1712859061110,-3334.05,0.0003041,2]
[322161133,1712859061120,-500.0,0.0003041,2]
[322161134,1712859061132,-500.0,0.0003041,2]
[322161135,1712859061141,-641.76,0.0003041,2]
[322161136,1712859061151,-503.26,0.0003041,2]
[322161137,1712859061161,-511.51,0.0003041,2]
[322161138,1712859061170,-696.95,0.0003041,2]
[322161139,1712859061180,-500.0,0.0003041,2]
[322161140,1712859061189,-500.0,0.0003041,2]
[322161141,1712859061198,-2431.11,0.0003041,2]
[322161142,1712859061209,-500.0,0.0003041,2]
[322161143,1712859061217,-500.0,0.0003041,2]
[322161144,1712859061227,-500.0,0.0003041,2]
[322161145,1712859061236,-598.96,0.0003041,2]
[322161146,1712859061245,-664.6,0.0003041,2]
[322161147,1712859061254,-500.0,0.0003041,2]
[322161148,1712859061263,-500.0,0.0003041,2]
[322161149,1712859061272,-1481.43,0.0003041,2]
[322161150,1712859061281,-1829.47,0.0003041,2]
[322161151,1712859061290,-500.0,0.0003041,2]
[322161152,1712859061300,-500.0,0.0003041,2]
[322161153,1712859061310,-1108.78,0.0003041,2]
[322161154,1712859061320,-500.0,0.0003041,2]
[322161155,1712859061329,-681.97,0.0003041,2]
[322161156,1712859061338,-500.0,0.0003041,2]
[322161157,1712859061347,-1365.21,0.0003041,2]
[322161158,1712859061356,-500.0,0.0003041,2]
[322161159,1712859061365,-500.0,0.0003041,2]
[322161160,1712859061374,-1177.76,0.0003041,2]
[322161161,1712859061383,-929.75,0.0003041,2]
[322161162,1712859061392,-500.0,0.0003041,2]
[322161163,1712859061400,-500.0,0.0003041,2]
[322161164,1712859061408,-500.0,0.0003041,2]
[322161165,1712859061416,-865.85,0.0003041,2]
[322161166,1712859061426,-197.36,0.0003041,2]
[322161167,1712859061435,-500.0,0.0003041,2]
[322161168,1712859061443,-500.0,0.0003041,2]
[322161169,1712859061453,-1216.74,0.0003041,2]
[322161170,1712859061461,-544.05,0.0003041,2]
[322161171,1712859061471,-1496.85,0.0003041,2]
[322161172,1712859061479,-500.0,0.0003041,2]
[322161173,1712859061488,-805.94,0.0003041,2]
[322161174,1712859061497,-500.0,0.0003041,2]
[322161175,1712859061506,-300.0,0.0003041,2]
[322161176,1712859061515,-2427.79,0.0003041,2]
[322161177,1712859061524,-500.0,0.0003041,2]
[322161178,1712859061533,-500.0,0.0003041,2]
[322161179,1712859061543,-694.62,0.0003041,2]
[322161180,1712859061552,-673.38,0.0003041,2]
[322161181,1712859061561,-500.0,0.0003041,2]
[322161182,1712859061571,-500.0,0.0003041,2]
[322161183,1712859061580,-500.0,0.0003041,2]
[322161184,1712859061587,-1349.51,0.0003041,2]
[322161185,1712859061593,-670.98,0.0003041,2]
[322161186,1712859061602,-311.5290067,0.0003041,2]
[322161187,1712859061609,-2143.58,0.0003041,2]
[322161188,1712859061617,-198.19401729,0.0003041,2]
[322161189,1712859061625,-500.0,0.0003041,2]
[322161190,1712859061633,-500.0,0.0003041,2]
[322161191,1712859061641,-500.0,0.0003041,2]
[322161192,1712859061647,-608.4,0.0003041,2]
[322161193,1712859061655,-500.0,0.0003041,2]
[322161194,1712859061661,-1179.6,0.0003041,2]
[322161195,1712859061667,-500.0,0.0003041,2]
[322161196,1712859061675,-1065.17,0.0003041,2]
[322161197,1712859061683,-500.0,0.0003041,2]
[322161198,1712859061690,-500.0,0.0003041,2]
[322161199,1712859061696,-1486.92,0.0003041,2]
[322161200,1712859061703,-500.0,0.0003041,2]
[322161201,1712859061710,-1467.09,0.0003041,2]
[322161202,1712859061717,-500.0,0.0003041,2]
[322161203,1712859061723,-1650.91,0.0003041,2]
[322161204,1712859061730,-500.0,0.0003041,2]
[322161205,1712859061739,-500.0,0.0003041,2]
[322161206,1712859061748,-626.62,0.0003041,2]
[322161207,1712859061758,-500.0,0.0003041,2]
[322161208,1712859061767,-1059.58,0.0003041,2]
[322161209,1712859061777,-2622.25,0.0003041,2]
[322161210,1712859061786,-575.17,0.0003041,2]
[322161211,1712859061795,-1575.07,0.0003041,2]
[322161212,1712859061805,-505.0,0.0003041,2]
[322161213,1712859061815,-500.0,0.0003041,2]
[322161214,1712859061825,-500.0,0.0003041,2]
[322161215,1712859061835,-729.95,0.0003041,2]
[322161216,1712859062041,-500.0,0.0003041,2]
[322161217,1712859062051,-799.93,0.0003041,2]
[322161218,1712859062062,-1782.91,0.0003041,2]
[322161219,1712859062071,-783.3,0.0003041,2]
[322161220,1712859062081,-604.9,0.0003041,2]
[322161221,1712859062090,-2061.76,0.0003041,2]
[322161222,1712859062100,-908.56,0.0003041,2]
[322161223,1712859062109,-539.83,0.0003041,2]
[322161224,1712859062119,-203.38474943,0.0003041,2]
[322161225,1712859062130,-2661.96,0.0003041,2]
[322161226,1712859062139,-500.0,0.0003041,2]
[322161227,1712859062148,-572.21,0.0003041,2]
[322161228,1712859062158,-500.0,0.0003041,2]
[322161229,1712859062167,-2476.12,0.0003041,2]
[322161230,1712859062176,-858.12,0.0003041,2]
[322161231,1712859062185,-500.0,0.0003041,2]
[322161232,1712859062195,-500.0,0.0003041,2]
[322161233,1712859062206,-500.0,0.0003041,2]
[322161234,1712859062215,-1209.9,0.0003041,2]
[322161235,1712859062224,-500.0,0.0003041,2]
[322161236,1712859062233,-500.0,0.0003041,2]
[322161237,1712859062242,-500.0,0.0003041,2]
[322161238,1712859062251,-845.06,0.0003041,2]
[322161239,1712859062262,-1262.22,0.0003041,2]
[322161240,1712859062272,-500.0,0.0003041,2]
[322161241,1712859062281,-632.95,0.0003041,2]
[322161242,1712859062291,-696.27,0.0003041,2]
[322161243,1712859062300,-601.20501991,0.0003041,2]
[322161244,1712859062310,-2250.54,0.0003041,2]
[322161245,1712859062319,-500.0,0.0003041,2]
[322161246,1712859062329,-500.0,0.0003041,2]
[322161247,1712859062338,-500.0,0.0003041,2]
[322161248,1712859062347,-588.38,0.0003041,2]
[322161249,1712859062356,-500.0,0.0003041,2]
[322161250,1712859062365,-500.0,0.0003041,2]
[322161251,1712859062374,-500.0,0.0003041,2]
[322161252,1712859062383,-500.0,0.0003041,2]
[322161253,1712859062392,-1165.56,0.0003041,2]
[322161254,1712859062401,-624.2,0.0003041,2]
[322161255,1712859062410,-500.0,0.0003041,2]
[322161256,1712859062419,-500.0,0.0003041,2]
[322161257,1712859062428,-545.64,0.0003041,2]
[322161258,1712859062437,-3833.07,0.0003041,2]
[322161259,1712859062447,-1477.09,0.0003041,2]
[322161260,1712859062457,-12352.72,0.0003041,2]
[322161261,1712859062466,-1477.33,0.0003041,2]
[322161262,1712859062476,-500.0,0.0003041,2]
[322161263,1712859062485,-847.59,0.0003041,2]
[322161264,1712859062494,-500.0,0.0003041,2]
[322161265,1712859062503,-500.0,0.0003041,2]
[322161266,1712859062512,-422.3357206,0.0003041,2]
[322161267,1712859062521,-500.0,0.0003041,2]
[322161268,1712859062531,-500.0,0.0003041,2]
[322161269,1712859062541,-500.0,0.0003041,2]
[322161270,1712859062550,-9040.26,0.0003041,2]
[322161271,1712859062561,-2393.71,0.0003041,2]
[322161272,1712859062571,-500.0,0.0003041,2]
[322161273,1712859062580,-3245.84,0.0003041,2]
[322161274,1712859062589,-500.0,0.0003041,2]
[322161275,1712859062598,-500.0,0.0003041,2]
[322161276,1712859062607,-2193.34,0.0003041,2]
[322161277,1712859062617,-500.0,0.0003041,2]
[322161278,1712859062626,-500.0,0.0003041,2]
[322161279,1712859062635,-500.0,0.0003041,2]
[322161280,1712859062644,-1077.87,0.0003041,2]
[322161281,1712859062653,-331.45,0.0003041,2]
[322161282,1712859062662,-500.0,0.0003041,2]
[322161283,1712859062671,-500.0,0.0003041,2]
[322161284,1712859062680,-500.0,0.0003041,2]
[322161285,1712859062689,-500.0,0.0003041,2]
[322161286,1712859062698,-713.62,0.0003041,2]
[322161287,1712859062707,-5084.56,0.0003041,2]
[322161288,1712859062716,-500.0,0.0003041,2]
[322161289,1712859062725,-500.0,0.0003041,2]
[322161290,1712859062735,-3527.81,0.0003041,2]
[322161291,1712859062744,-223.92310084,0.0003041,2]
[322161292,1712859062753,-500.0,0.0003041,2]
[322161293,1712859062762,-500.0,0.0003041,2]
[322161294,1712859062771,-1106.95,0.0003041,2]
[322161295,1712859062780,-500.0,0.0003041,2]
[322161296,1712859062789,-750.19,0.0003041,2]
[322161297,1712859062798,-1614.95,0.0003041,2]
[322161298,1712859062808,-2036.24,0.0003041,2]
[322161299,1712859062817,-65722.89,0.0003041,2]
[322161300,1712859062827,-500.0,0.0003041,2]
[322161301,1712859062836,-500.0,0.0003041,2]
[322161302,1712859062845,-500.0,0.0003041,2]
[322161303,1712859062854,-24123.09,0.0003041,2]
[322161304,1712859062863,-4300.48,0.0003041,2]
[322161305,1712859062872,-500.0,0.0003041,2]
[322161306,1712859062881,-500.0,0.0003041,2]
[322161307,1712859062890,-7525.53,0.0003041,2]
[322161308,1712859062899,-627.1,0.0003041,2]
[322161309,1712859062908,-585.64,0.0003041,2]
[322161310,1712859062917,-536.63,0.0003041,2]
[322161311,1712859062927,-4795.75,0.0003041,2]
[322161312,1712859062936,-500.0,0.0003041,2]
[322161313,1712859062945,-500.0,0.0003041,2]
[322161314,1712859062954,-5036.37,0.0003041,2]
[322161315,1712859062963,-1591.4,0.0003041,2]
[322161316,1712859062972,-1640.53,0.0003041,2]
[322161317,1712859062981,-500.0,0.0003041,2]
[322161318,1712859062990,-202.04442145,0.0003041,2]
[322161319,1712859062999,-1488.03,0.0003041,2]
[322161320,1712859063008,-4282.53,0.0003041,2]
[322161321,1712859063017,-38218.43,0.0003041,2]
[322161322,1712859063026,-500.0,0.0003041,2]
[322161323,1712859063035,-15449.68,0.0003041,2]
[322161324,1712859063044,-2705.31,0.0003041,2]
[322161325,1712859063053,-1879.85,0.0003041,2]
[322161326,1712859063063,-4715.22,0.0003041,2]
[322161327,1712859063072,-500.0,0.0003041,2]
[322161328,1712859063081,-500.0,0.0003041,2]
[322161329,1712859063090,-2098.07,0.0003041,2]
[322161330,1712859063100,-12465.72,0.0003041,2]
[322161331,1712859063109,-500.0,0.0003041,2]
[322161332,1712859063118,-644.62,0.0003041,2]
[322161333,1712859063130,-500.0,0.0003041,2]
[322161334,1712859063139,-1305.7,0.0003041,2]
[322161335,1712859063149,-500.0,0.0003041,2]
[322161336,1712859063158,-500.0,0.0003041,2]
[322161337,1712859063167,-3263.01,0.0003041,2]
[322161338,1712859063177,-500.0,0.0003041,2]
[322161339,1712859063186,-8542.83,0.0003041,2]
[322161340,1712859063195,-500.0,0.0003041,2]
[322161341,1712859063205,-500.0,0.0003041,2]
[322161342,1712859063214,-1279.61,0.0003041,2]
[322161343,1712859063223,-1717.11,0.0003041,2]
[322161344,1712859063233,-500.0,0.0003041,2]
[322161345,1712859063242,-1221.83,0.0003041,2]
[322161346,1712859063251,-1821.72,0.0003041,2]
[322161347,1712859063260,-500.0,0.0003041,2]
[322161348,1712859063269,-2438.22,0.0003041,2]
[322161349,1712859063279,-356.68302984,0.0003041,2]
[322161350,1712859063288,-751.76,0.0003041,2]
[322161351,1712859063297,-500.0,0.0003041,2]
[322161352,1712859063308,-17826.69,0.0003041,2]
[322161353,1712859063317,-500.0,0.0003041,2]
[322161354,1712859063326,-6901.08,0.0003041,2]
[322161355,1712859063335,-500.0,0.0003041,2]
[322161356,1712859063344,-500.0,0.0003041,2]
[322161357,1712859063353,-500.0,0.0003041,2]
[322161358,1712859063362,-1838.23,0.0003041,2]
[322161359,1712859063372,-500.0,0.0003041,2]
[322161360,1712859063381,-500.0,0.0003041,2]
[322161361,1712859063390,-3037.22,0.0003041,2]
[322161362,1712859063399,-500.0,0.0003041,2]
[322161363,1712859063408,-500.0,0.0003041,2]
[322161364,1712859063417,-500.0,0.0003041,2]
[322161365,1712859063426,-8549.56,0.0003041,2]
[322161366,1712859063436,-4553.37,0.0003041,2]
[322161367,1712859063445,-13404.35,0.0003041,2]
[322161368,1712859063455,-500.0,0.0003041,2]
[322161369,1712859063464,-500.0,0.0003041,2]
[322161370,1712859063473,-5336.78,0.0003041,2]
[322161371,1712859063483,-297.70056092,0.0003041,2]
[322161372,1712859063491,-1425.12,0.0003041,2]
[322161373,1712859063500,-175.18,0.0003041,2]
[322161374,1712859063509,-500.0,0.0003041,2]
[322161375,1712859063518,-3958.02,0.0003041,2]
[322161376,1712859063528,-1035.82,0.0003041,2]
[322161377,1712859063537,-500.0,0.0003041,2]
[322161378,1712859063548,-4521.48,0.0003041,2]
[322161379,1712859063557,-3360.22,0.0003041,2]
[322161380,1712859063567,-2407.51,0.0003041,2]
[322161381,1712859063576,-1632.2,0.0003041,2]
[322161382,1712859063584,-500.0,0.0003041,2]
[322161383,1712859063593,-500.0,0.0003041,2]
[322161384,1712859063602,-500.0,0.0003041,2]
[322161385,1712859063611,-584.5733401,0.0003041,2]
[322161386,1712859063621,-2827.93,0.0003041,2]
[322161387,1712859063630,-4654.17,0.0003041,2]
[322161388,1712859063640,-874.05,0.0003041,2]
[322161389,1712859063649,-408.07239987,0.0003041,2]
[322161390,1712859063658,-2455.11,0.0003041,2]
[322161391,1712859063667,-992.84,0.0003041,2]
[322161392,1712859063676,-2526.46,0.0003041,2]
[322161393,1712859063686,-500.0,0.0003041,2]
[322161394,1712859063695,-1601.47,0.0003041,2]
[322161395,1712859063704,-1668.15,0.0003041,2]
[322161396,1712859063713,-500.0,0.0003041,2]
[322161397,1712859063722,-500.0,0.0003041,2]
[322161398,1712859063732,-1046.83,0.0003041,2]
[322161399,1712859063741,-3422.71,0.0003041,2]
[322161400,1712859063751,-7469.51,0.0003041,2]
[322161401,1712859063760,-511.67,0.0003041,2]
[322161402,1712859063769,-500.0,0.0003041,2]
[322161403,1712859063779,-753.83,0.0003041,2]
[322161404,1712859063788,-500.0,0.0003041,2]
[322161405,1712859063797,-8727.33,0.0003041,2]
[322161406,1712859063807,-3185.98,0.0003041,2]
[322161407,1712859063816,-756.61,0.0003041,2]
[322161408,1712859063826,-5231.9,0.0003041,2]
[322161409,1712859063835,-500.0,0.0003041,2]
[322161410,1712859063845,-522.02,0.0003041,2]
[322161411,1712859063854,-500.0,0.0003041,2]
[322161412,1712859063863,-500.0,0.0003041,2]
[322161413,1712859063873,-849.21,0.0003041,2]
[322161414,1712859063882,-4812.04,0.0003041,2]
[322161415,1712859063891,-7952.03,0.0003041,2]
[322161416,1712859063900,-500.0,0.0003041,2]
[322161417,1712859063909,-4606.97,0.0003041,2]
[322161418,1712859063918,-500.0,0.0003041,2]
[322161419,1712859063928,-13348.08,0.0003041,2]
[322161420,1712859063937,-500.0,0.0003041,2]
[322161421,1712859063946,-2523.89,0.0003041,2]
[322161422,1712859063955,-500.0,0.0003041,2]
[322161423,1712859063964,-2182.0,0.0003041,2]
[322161424,1712859063973,-500.0,0.0003041,2]
[322161425,1712859063982,-2980.37,0.0003041,2]
[322161426,1712859063991,-500.0,0.0003041,2]
[322161427,1712859064000,-818.61,0.0003041,2]
[322161428,1712859064010,-500.0,0.0003041,2]
[322161429,1712859064019,-2420.57,0.0003041,2]
[322161430,1712859064028,-2418.49,0.0003041,2]
[322161431,1712859064038,-32425.31,0.0003041,2]